[Event "Titled Tuesday Blitz February 22 Early 2022"]
[White "Delaney, Killian"]
[Black "Osiecki, Stanislaw"]
[WhiteFideId "2501570"]
[BlackFideId "1102990"]
[WhiteElo "2306"]
[BlackElo "2127"]
[Result "1-0"]
[Round "01"]
[TimeControl "180+1"]
[Date "2022.02.22"]
[WhiteClock "0:00:24"]
[BlackClock "0:00:01"]

1. e4 {[%clk 0:02:59]}  e6 {[%clk 0:03:00]} 2. d4 {[%clk 0:02:58]}  d5 {[%clk 0:03:00]} 3. e5 {[%clk 0:02:58]}  c5 {[%clk 0:03:00]} 4. c3 {[%clk 0:02:59]}  Nc6 {[%clk 0:03:00]} 5. Nf3 {[%clk 0:02:59]}  Qb6 {[%clk 0:03:00]} 6. Bd3 {[%clk 0:03:00]}  cxd4 {[%clk 0:03:00]} 7. cxd4 {[%clk 0:03:00]}  Nb4 {[%clk 0:03:00]} 8. Be2 {[%clk 0:02:58]}  Ne7 {[%clk 0:02:59]} 9. Nc3 {[%clk 0:02:58]}  Nf5 {[%clk 0:02:59]} 10. O-O {[%clk 0:02:57]}  Bd7 {[%clk 0:02:57]} 11. a3 {[%clk 0:02:53]}  Nc6 {[%clk 0:02:57]} 12. Na4 {[%clk 0:02:52]}  Qd8 {[%clk 0:02:56]} 13. Be3 {[%clk 0:02:46]}  Be7 {[%clk 0:02:52]} 14. b4 {[%clk 0:02:46]}  O-O {[%clk 0:02:48]} 15. Rc1 {[%clk 0:02:45]}  Rc8 {[%clk 0:02:46]} 16. Bd3 {[%clk 0:02:36]}  Nxe3 {[%clk 0:02:45]} 17. fxe3 {[%clk 0:02:36]}  h6 {[%clk 0:02:39]} 18. Bb1 {[%clk 0:02:26]}  b6 {[%clk 0:02:34]} 19. Qd3 {[%clk 0:02:21]}  g6 {[%clk 0:02:34]} 20. Nc3 {[%clk 0:02:20]}  a5 {[%clk 0:02:28]} 21. b5 {[%clk 0:02:19]}  Na7 {[%clk 0:02:27]} 22. a4 {[%clk 0:02:19]}  Kg7 {[%clk 0:02:25]} 23. e4 {[%clk 0:02:15]}  dxe4 {[%clk 0:02:18]} 24. Qxe4 {[%clk 0:02:13]}  Bb4 {[%clk 0:02:13]} 25. Ne2 {[%clk 0:02:09]}  Rc7 {[%clk 0:01:44]} 26. Nf4 {[%clk 0:01:58]}  Be8 {[%clk 0:01:22]} 27. h4 {[%clk 0:01:42]}  Rxc1 {[%clk 0:01:15]} 28. Rxc1 {[%clk 0:01:42]}  Qe7 {[%clk 0:01:13]} 29. h5 {[%clk 0:01:35]}  Ba3 {[%clk 0:01:03]} 30. Rf1 {[%clk 0:01:27]}  f5 {[%clk 0:00:51]} 31. exf6+ {[%clk 0:01:26]}  Qxf6 {[%clk 0:00:50]} 32. Nxg6 {[%clk 0:01:12]}  Bxg6 {[%clk 0:00:47]} 33. hxg6 {[%clk 0:01:12]}  Nc8 {[%clk 0:00:25]} 34. Ba2 {[%clk 0:00:56]}  Nd6 {[%clk 0:00:19]} 35. Qxe6 {[%clk 0:00:56]}  Qxe6 {[%clk 0:00:19]} 36. Bxe6 {[%clk 0:00:57]}  Kxg6 {[%clk 0:00:17]} 37. Kh2 {[%clk 0:00:43]}  Ne4 {[%clk 0:00:13]} 38. Ne5+ {[%clk 0:00:34]}  Kg7 {[%clk 0:00:12]} 39. Re1 {[%clk 0:00:32]}  Nc3 {[%clk 0:00:09]} 40. Re3 {[%clk 0:00:32]}  Nxa4 {[%clk 0:00:09]} 41. Rxa3 {[%clk 0:00:31]}  Nb2 {[%clk 0:00:09]} 42. Rg3+ {[%clk 0:00:26]}  Kf6 {[%clk 0:00:08]} 43. Nd7+ {[%clk 0:00:26]}  Kxe6 {[%clk 0:00:07]} 44. Nxf8+ {[%clk 0:00:27]}  Kd5 {[%clk 0:00:08]} 45. Rg6 {[%clk 0:00:25]}  Kxd4 {[%clk 0:00:05]} 46. Rxb6 {[%clk 0:00:25]}  Kc5 {[%clk 0:00:05]} 47. Rb8 {[%clk 0:00:25]}  a4 {[%clk 0:00:05]} 48. Ne6+ {[%clk 0:00:25]}  Kb4 {[%clk 0:00:04]} 49. b6 {[%clk 0:00:25]}  a3 {[%clk 0:00:04]} 50. Nd4 {[%clk 0:00:24]}  a2 {[%clk 0:00:04]} 51. Nc2+ {[%clk 0:00:24]}  Kc3 {[%clk 0:00:04]} 52. Na1 {[%clk 0:00:25]}  Nc4 {[%clk 0:00:03]} 53. b7 {[%clk 0:00:25]}  Nd6 {[%clk 0:00:01]} 54. Rc8+ {[%clk 0:00:24]} 1-0


[Site "https://www.chess.com"]

[Event "Titled Tuesday Blitz February 22 Early 2022"]
[White "Demin, Vladimir"]
[Black "Markelova, Lubov"]
[WhiteFideId "4167457"]
[BlackFideId "24131369"]
[WhiteElo "2570"]
[BlackElo "1820"]
[Result "1-0"]
[Round "01"]
[TimeControl "180+1"]
[Date "2022.02.22"]
[WhiteClock "0:00:35"]
[BlackClock "0:00:02"]

1. d4 {[%clk 0:03:00]}  d5 {[%clk 0:02:59]} 2. Nc3 {[%clk 0:02:59]}  Nf6 {[%clk 0:02:58]} 3. Bf4 {[%clk 0:02:59]}  c5 {[%clk 0:02:57]} 4. e3 {[%clk 0:02:59]}  a6 {[%clk 0:02:57]} 5. dxc5 {[%clk 0:02:55]}  e6 {[%clk 0:02:48]} 6. b4 {[%clk 0:02:54]}  b6 {[%clk 0:02:28]} 7. Nf3 {[%clk 0:02:16]}  bxc5 {[%clk 0:02:22]} 8. b5 {[%clk 0:02:16]}  Bd6 {[%clk 0:02:11]} 9. Bxd6 {[%clk 0:02:15]}  Qxd6 {[%clk 0:02:11]} 10. bxa6 {[%clk 0:02:13]}  Bxa6 {[%clk 0:02:08]} 11. Bxa6 {[%clk 0:02:12]}  Nxa6 {[%clk 0:02:07]} 12. O-O {[%clk 0:02:11]}  O-O {[%clk 0:02:05]} 13. a4 {[%clk 0:02:04]}  Nb4 {[%clk 0:01:46]} 14. Nb5 {[%clk 0:02:01]}  Qb6 {[%clk 0:01:41]} 15. c3 {[%clk 0:01:50]}  Nc6 {[%clk 0:01:41]} 16. Qc2 {[%clk 0:01:47]}  Na7 {[%clk 0:01:30]} 17. c4 {[%clk 0:01:35]}  Rfd8 {[%clk 0:01:09]} 18. Rfb1 {[%clk 0:01:29]}  Nc6 {[%clk 0:00:49]} 19. h3 {[%clk 0:01:07]}  Nb4 {[%clk 0:00:49]} 20. Qb3 {[%clk 0:01:06]}  Ne4 {[%clk 0:00:38]} 21. Rd1 {[%clk 0:00:58]}  h6 {[%clk 0:00:22]} 22. Ne5 {[%clk 0:00:55]}  Nd6 {[%clk 0:00:16]} 23. Nc3 {[%clk 0:00:40]}  Nxc4 {[%clk 0:00:13]} 24. Nxc4 {[%clk 0:00:39]}  dxc4 {[%clk 0:00:14]} 25. Qxc4 {[%clk 0:00:39]}  Rxd1+ {[%clk 0:00:13]} 26. Rxd1 {[%clk 0:00:40]}  Rd8 {[%clk 0:00:06]} 27. Rxd8+ {[%clk 0:00:39]}  Qxd8 {[%clk 0:00:07]} 28. Qxc5 {[%clk 0:00:38]}  Nd3 {[%clk 0:00:07]} 29. Qd4 {[%clk 0:00:37]}  Qxd4 {[%clk 0:00:05]} 30. exd4 {[%clk 0:00:38]}  Nb4 {[%clk 0:00:05]} 31. a5 {[%clk 0:00:37]}  Kf8 {[%clk 0:00:04]} 32. Kf1 {[%clk 0:00:36]}  Ke7 {[%clk 0:00:03]} 33. Na4 {[%clk 0:00:35]}  Kd6 {[%clk 0:00:02]} 34. Nc5 {[%clk 0:00:35]} 1-0


[Site "https://www.chess.com"]

[Event "Titled Tuesday Blitz February 22 Early 2022"]
[White "Dolzhykova, Kateryna"]
[Black "Vitiugov, Nikita"]
[WhiteFideId "14113414"]
[BlackFideId "4152956"]
[WhiteElo "2165"]
[BlackElo "2673"]
[Result "0-1"]
[Round "01"]
[TimeControl "180+1"]
[Date "2022.02.22"]
[WhiteClock "0:00:02"]
[BlackClock "0:00:06"]

1. e4 {[%clk 0:02:58]}  c5 {[%clk 0:02:58]} 2. Nf3 {[%clk 0:02:55]}  Nc6 {[%clk 0:02:58]} 3. Bb5 {[%clk 0:02:52]}  e6 {[%clk 0:02:58]} 4. O-O {[%clk 0:02:48]}  Nge7 {[%clk 0:02:52]} 5. c3 {[%clk 0:02:45]}  a6 {[%clk 0:02:51]} 6. Ba4 {[%clk 0:02:45]}  b5 {[%clk 0:02:51]} 7. Bc2 {[%clk 0:02:46]}  Bb7 {[%clk 0:02:52]} 8. d4 {[%clk 0:02:45]}  cxd4 {[%clk 0:02:46]} 9. Nxd4 {[%clk 0:02:44]}  Ng6 {[%clk 0:02:44]} 10. Be3 {[%clk 0:02:43]}  Be7 {[%clk 0:02:41]} 11. f4 {[%clk 0:02:38]}  O-O {[%clk 0:02:37]} 12. Nd2 {[%clk 0:02:34]}  Nxd4 {[%clk 0:02:36]} 13. Bxd4 {[%clk 0:02:35]}  Bf6 {[%clk 0:02:24]} 14. f5 {[%clk 0:02:29]}  Ne5 {[%clk 0:02:23]} 15. Qh5 {[%clk 0:02:10]}  d6 {[%clk 0:02:02]} 16. Rad1 {[%clk 0:02:04]}  Qe7 {[%clk 0:01:58]} 17. Nf3 {[%clk 0:01:49]}  g6 {[%clk 0:01:52]} 18. Qh3 {[%clk 0:01:41]}  exf5 {[%clk 0:01:49]} 19. exf5 {[%clk 0:01:34]}  Nxf3+ {[%clk 0:01:49]} 20. gxf3 {[%clk 0:01:30]}  Rae8 {[%clk 0:01:38]} 21. Bf2 {[%clk 0:00:50]}  Qe2 {[%clk 0:01:27]} 22. Bb3 {[%clk 0:00:48]}  Re5 {[%clk 0:01:24]} 23. Rfe1 {[%clk 0:00:24]}  Qxf3 {[%clk 0:01:06]} 24. Qxf3 {[%clk 0:00:23]}  Bxf3 {[%clk 0:01:07]} 25. Rxd6 {[%clk 0:00:23]}  Rxf5 {[%clk 0:01:04]} 26. Rxa6 {[%clk 0:00:21]}  h5 {[%clk 0:01:00]} 27. Re3 {[%clk 0:00:11]}  Kg7 {[%clk 0:00:44]} 28. Rd3 {[%clk 0:00:11]}  Be5 {[%clk 0:00:37]} 29. Ra7 {[%clk 0:00:10]}  Be2 {[%clk 0:00:31]} 30. Re3 {[%clk 0:00:05]}  Rg5+ {[%clk 0:00:13]} 31. Bg3 {[%clk 0:00:04]}  Bb8 {[%clk 0:00:11]} 32. Rxe2 {[%clk 0:00:04]}  Bxa7+ {[%clk 0:00:11]} 33. Kg2 {[%clk 0:00:05]}  h4 {[%clk 0:00:11]} 34. Re5 {[%clk 0:00:04]}  Kf6 {[%clk 0:00:09]} 35. Rxg5 {[%clk 0:00:02]}  Kxg5 {[%clk 0:00:10]} 36. Be1 {[%clk 0:00:01]}  f5 {[%clk 0:00:08]} 37. Kf3 {[%clk 0:00:02]}  Kh6 {[%clk 0:00:05]} 38. Bd2+ {[%clk 0:00:02]}  g5 {[%clk 0:00:05]} 39. Be6 {[%clk 0:00:02]}  Bb8 {[%clk 0:00:06]} 40. Be3 {[%clk 0:00:02]}  Kg6 {[%clk 0:00:06]} 41. b3 {[%clk 0:00:02]}  g4+ {[%clk 0:00:06]} 42. Kg2 {[%clk 0:00:02]}  f4 {[%clk 0:00:07]} 43. Bd4 {[%clk 0:00:01]}  f3+ {[%clk 0:00:07]} 44. Kg1 {[%clk 0:00:01]}  g3 {[%clk 0:00:08]} 45. hxg3 {[%clk 0:00:02]}  hxg3 {[%clk 0:00:08]} 46. Bh3 {[%clk 0:00:02]}  Kg5 {[%clk 0:00:07]} 47. c4 {[%clk 0:00:02]}  Rd8 {[%clk 0:00:07]} 48. Be3+ {[%clk 0:00:01]}  Bf4 {[%clk 0:00:07]} 49. Bb6 {[%clk 0:00:01]}  Rd1+ {[%clk 0:00:06]} 50. Bf1 {[%clk 0:00:02]}  g2 {[%clk 0:00:06]} 0-1


[Site "https://www.chess.com"]

[Event "Titled Tuesday Blitz February 22 Early 2022"]
[White "Wagner, Dinara"]
[Black "Necula, Iulian"]
[WhiteFideId "24157570"]
[BlackFideId "1232380"]
[WhiteElo "2216"]
[BlackElo "1776"]
[Result "1-0"]
[Round "01"]
[TimeControl "180+1"]
[Date "2022.02.22"]
[WhiteClock "0:00:49"]
[BlackClock "0:00:01"]

1. d4 {[%clk 0:02:57]}  d6 {[%clk 0:02:59]} 2. c4 {[%clk 0:02:56]}  f5 {[%clk 0:02:58]} 3. Nf3 {[%clk 0:02:55]}  Nf6 {[%clk 0:02:58]} 4. g3 {[%clk 0:02:56]}  g6 {[%clk 0:02:58]} 5. Bg2 {[%clk 0:02:56]}  Bg7 {[%clk 0:02:59]} 6. Nc3 {[%clk 0:02:56]}  O-O {[%clk 0:03:00]} 7. O-O {[%clk 0:02:57]}  c6 {[%clk 0:03:01]} 8. d5 {[%clk 0:02:51]}  e5 {[%clk 0:03:00]} 9. dxe6 {[%clk 0:02:51]}  Bxe6 {[%clk 0:03:00]} 10. Ng5 {[%clk 0:02:51]}  Bxc4 {[%clk 0:02:57]} 11. Bf4 {[%clk 0:02:48]}  d5 {[%clk 0:02:52]} 12. Ne6 {[%clk 0:02:47]}  Qe7 {[%clk 0:02:50]} 13. Nxf8 {[%clk 0:02:46]}  Qxf8 {[%clk 0:02:51]} 14. b3 {[%clk 0:02:39]}  Ba6 {[%clk 0:02:49]} 15. Rc1 {[%clk 0:02:39]}  Nbd7 {[%clk 0:02:46]} 16. Re1 {[%clk 0:02:37]}  Nh5 {[%clk 0:02:44]} 17. Be3 {[%clk 0:02:34]}  f4 {[%clk 0:02:38]} 18. Bd4 {[%clk 0:02:26]}  Bh6 {[%clk 0:02:29]} 19. Rc2 {[%clk 0:02:15]}  fxg3 {[%clk 0:02:27]} 20. hxg3 {[%clk 0:02:14]}  Re8 {[%clk 0:01:58]} 21. Nxd5 {[%clk 0:02:13]}  Qd6 {[%clk 0:00:40]} 22. Nc3 {[%clk 0:00:59]}  b6 {[%clk 0:00:14]} 23. Ne4 {[%clk 0:00:58]}  Qe6 {[%clk 0:00:09]} 24. Rxc6 {[%clk 0:00:55]}  Qxc6 {[%clk 0:00:07]} 25. Nf6+ {[%clk 0:00:55]}  Qxf6 {[%clk 0:00:07]} 26. Bxf6 {[%clk 0:00:55]}  Ndxf6 {[%clk 0:00:08]} 27. Qd6 {[%clk 0:00:53]}  Bf8 {[%clk 0:00:05]} 28. Qc7 {[%clk 0:00:50]}  Re7 {[%clk 0:00:04]} 29. Qd8 {[%clk 0:00:49]}  Kg7 {[%clk 0:00:04]} 30. Rc1 {[%clk 0:00:48]}  Bxe2 {[%clk 0:00:02]} 31. Rc7 {[%clk 0:00:49]}  Rxc7 {[%clk 0:00:02]} 32. Qxc7+ {[%clk 0:00:49]}  Kh6 {[%clk 0:00:02]} 33. Qxa7 {[%clk 0:00:49]}  Bg4 {[%clk 0:00:01]} 34. Qxb6 {[%clk 0:00:49]} 1-0


[Site "https://www.chess.com"]

[Event "Titled Tuesday Blitz February 22 Early 2022"]
[White "Dovbnia, Nikita"]
[Black "Rodchenkov, Sergey D."]
[WhiteFideId "54104599"]
[BlackFideId "4168712"]
[WhiteElo "2111"]
[BlackElo "2306"]
[Result "0-1"]
[Round "01"]
[TimeControl "180+1"]
[Date "2022.02.22"]
[WhiteClock "0:00:01"]
[BlackClock "0:00:12"]

1. Nf3 {[%clk 0:02:58]}  d5 {[%clk 0:02:59]} 2. g3 {[%clk 0:02:59]}  Nf6 {[%clk 0:03:00]} 3. Bg2 {[%clk 0:03:00]}  Bg4 {[%clk 0:03:00]} 4. O-O {[%clk 0:03:00]}  c6 {[%clk 0:03:00]} 5. d3 {[%clk 0:03:00]}  Nbd7 {[%clk 0:03:00]} 6. h3 {[%clk 0:03:01]}  Bh5 {[%clk 0:02:59]} 7. c4 {[%clk 0:03:00]}  dxc4 {[%clk 0:02:53]} 8. dxc4 {[%clk 0:03:01]}  e6 {[%clk 0:02:54]} 9. Nc3 {[%clk 0:02:58]}  Be7 {[%clk 0:02:54]} 10. e4 {[%clk 0:02:57]}  O-O {[%clk 0:02:51]} 11. Qd3 {[%clk 0:02:48]}  Nc5 {[%clk 0:02:21]} 12. Qe2 {[%clk 0:02:43]}  a5 {[%clk 0:02:15]} 13. Rd1 {[%clk 0:02:25]}  Qb6 {[%clk 0:02:14]} 14. Be3 {[%clk 0:02:20]}  Qa6 {[%clk 0:02:08]} 15. e5 {[%clk 0:02:03]}  Nfd7 {[%clk 0:01:50]} 16. Bd4 {[%clk 0:01:27]}  a4 {[%clk 0:01:48]} 17. Rac1 {[%clk 0:00:44]}  Bg6 {[%clk 0:01:42]} 18. Nd2 {[%clk 0:00:32]}  a3 {[%clk 0:01:19]} 19. b3 {[%clk 0:00:27]}  Nd3 {[%clk 0:01:05]} 20. Ra1 {[%clk 0:00:21]}  c5 {[%clk 0:01:03]} 21. Be3 {[%clk 0:00:11]}  N3xe5 {[%clk 0:00:57]} 22. f4 {[%clk 0:00:11]}  Nc6 {[%clk 0:00:55]} 23. Nb5 {[%clk 0:00:11]}  Qb6 {[%clk 0:00:49]} 24. Ne4 {[%clk 0:00:11]}  Nf6 {[%clk 0:00:45]} 25. Nbd6 {[%clk 0:00:05]}  Nd4 {[%clk 0:00:33]} 26. Bxd4 {[%clk 0:00:04]}  cxd4 {[%clk 0:00:33]} 27. c5 {[%clk 0:00:04]}  Qa7 {[%clk 0:00:31]} 28. Rxd4 {[%clk 0:00:04]}  Nxe4 {[%clk 0:00:30]} 29. Nxe4 {[%clk 0:00:04]}  Bxc5 {[%clk 0:00:18]} 30. Nxc5 {[%clk 0:00:04]}  Qxc5 {[%clk 0:00:19]} 31. Qf2 {[%clk 0:00:03]}  Qc3 {[%clk 0:00:13]} 32. Rad1 {[%clk 0:00:02]}  Rab8 {[%clk 0:00:12]} 33. Rc4 {[%clk 0:00:02]}  Qb2 {[%clk 0:00:12]} 34. Qxb2 {[%clk 0:00:02]}  axb2 {[%clk 0:00:13]} 35. Be4 {[%clk 0:00:02]}  b5 {[%clk 0:00:12]} 36. Bxg6 {[%clk 0:00:01]}  bxc4 {[%clk 0:00:11]} 37. bxc4 {[%clk 0:00:02]}  hxg6 {[%clk 0:00:11]} 38. Rb1 {[%clk 0:00:02]}  Rfc8 {[%clk 0:00:12]} 39. Kf2 {[%clk 0:00:01]}  Rxc4 {[%clk 0:00:12]} 0-1


[Site "https://www.chess.com"]

[Event "Titled Tuesday Blitz February 22 Early 2022"]
[White "Dreev, Aleksey"]
[Black "Karabalis, Harilos"]
[WhiteFideId "4100107"]
[BlackFideId "4621808"]
[WhiteElo "2636"]
[BlackElo "2168"]
[Result "1-0"]
[Round "01"]
[TimeControl "180+1"]
[Date "2022.02.22"]
[WhiteClock "0:00:23"]
[BlackClock "0:00:02"]

1. d4 {[%clk 0:03:00]}  Nf6 {[%clk 0:02:59]} 2. Nf3 {[%clk 0:03:00]}  d5 {[%clk 0:02:59]} 3. c4 {[%clk 0:03:00]}  e6 {[%clk 0:02:58]} 4. Nc3 {[%clk 0:03:00]}  dxc4 {[%clk 0:02:56]} 5. Bg5 {[%clk 0:02:58]}  Bb4 {[%clk 0:02:51]} 6. e3 {[%clk 0:02:57]}  c5 {[%clk 0:02:48]} 7. Bxc4 {[%clk 0:02:55]}  cxd4 {[%clk 0:02:48]} 8. Nxd4 {[%clk 0:02:53]}  O-O {[%clk 0:02:43]} 9. Qb3 {[%clk 0:02:41]}  Be7 {[%clk 0:02:33]} 10. O-O {[%clk 0:02:38]}  a6 {[%clk 0:02:24]} 11. Rfd1 {[%clk 0:02:35]}  Qa5 {[%clk 0:02:22]} 12. Ne4 {[%clk 0:02:33]}  Nbd7 {[%clk 0:02:11]} 13. Bxe6 {[%clk 0:02:07]}  fxe6 {[%clk 0:01:52]} 14. Qxe6+ {[%clk 0:01:18]}  Rf7 {[%clk 0:01:42]} 15. Nf5 {[%clk 0:01:18]}  Bf8 {[%clk 0:01:28]} 16. Ned6 {[%clk 0:00:56]}  Ne5 {[%clk 0:01:00]} 17. Nxc8 {[%clk 0:00:50]}  Rxc8 {[%clk 0:00:42]} 18. Qxc8 {[%clk 0:00:49]}  Ne4 {[%clk 0:00:42]} 19. Bf4 {[%clk 0:00:41]}  Ng6 {[%clk 0:00:38]} 20. Nd6 {[%clk 0:00:35]}  Nxd6 {[%clk 0:00:23]} 21. Bxd6 {[%clk 0:00:33]}  Qb5 {[%clk 0:00:16]} 22. Bxf8 {[%clk 0:00:29]}  Nxf8 {[%clk 0:00:15]} 23. b3 {[%clk 0:00:27]}  h6 {[%clk 0:00:14]} 24. Qc4 {[%clk 0:00:26]}  Qf5 {[%clk 0:00:13]} 25. f3 {[%clk 0:00:25]}  Qe5 {[%clk 0:00:12]} 26. e4 {[%clk 0:00:25]}  Ne6 {[%clk 0:00:12]} 27. Qd5 {[%clk 0:00:24]}  Qf6 {[%clk 0:00:12]} 28. Rac1 {[%clk 0:00:23]}  Kh7 {[%clk 0:00:11]} 29. Qf5+ {[%clk 0:00:23]}  Qxf5 {[%clk 0:00:12]} 30. exf5 {[%clk 0:00:23]}  Rxf5 {[%clk 0:00:13]} 31. Rd7 {[%clk 0:00:23]}  Nf4 {[%clk 0:00:12]} 32. Rcc7 {[%clk 0:00:22]}  Rg5 {[%clk 0:00:13]} 33. g3 {[%clk 0:00:23]}  Ne6 {[%clk 0:00:09]} 34. Rc4 {[%clk 0:00:23]}  Rg6 {[%clk 0:00:08]} 35. f4 {[%clk 0:00:22]}  Rf6 {[%clk 0:00:08]} 36. Rd6 {[%clk 0:00:22]}  Kg6 {[%clk 0:00:03]} 37. Re4 {[%clk 0:00:22]}  Kf5 {[%clk 0:00:02]} 38. Re5+ {[%clk 0:00:22]}  Kg4 {[%clk 0:00:02]} 39. Rexe6 {[%clk 0:00:23]} 1-0


[Site "https://www.chess.com"]

[Event "Titled Tuesday Blitz February 22 Early 2022"]
[White "Erdogdu, Mert"]
[Black "Iljin, Timofey"]
[WhiteFideId "6301495"]
[BlackFideId "14110180"]
[WhiteElo "2485"]
[BlackElo "2396"]
[Result "1-0"]
[Round "01"]
[TimeControl "180+1"]
[Date "2022.02.22"]
[WhiteClock "0:01:44"]
[BlackClock "0:01:45"]

1. e4 {[%clk 0:02:59]}  e5 {[%clk 0:02:59]} 2. Nf3 {[%clk 0:02:59]}  Nc6 {[%clk 0:02:59]} 3. Bc4 {[%clk 0:02:58]}  Nf6 {[%clk 0:02:59]} 4. d3 {[%clk 0:02:58]}  Bc5 {[%clk 0:02:59]} 5. O-O {[%clk 0:02:57]}  d6 {[%clk 0:02:58]} 6. c3 {[%clk 0:02:57]}  a6 {[%clk 0:02:57]} 7. a4 {[%clk 0:02:56]}  O-O {[%clk 0:02:52]} 8. Bg5 {[%clk 0:02:55]}  h6 {[%clk 0:02:52]} 9. Bh4 {[%clk 0:02:55]}  g5 {[%clk 0:02:49]} 10. Bg3 {[%clk 0:02:55]}  Bg4 {[%clk 0:02:44]} 11. Nbd2 {[%clk 0:02:50]}  Ne7 {[%clk 0:02:44]} 12. Qc2 {[%clk 0:02:46]}  Ng6 {[%clk 0:02:27]} 13. d4 {[%clk 0:02:39]}  exd4 {[%clk 0:02:27]} 14. cxd4 {[%clk 0:02:39]}  Bb6 {[%clk 0:02:27]} 15. e5 {[%clk 0:02:39]}  dxe5 {[%clk 0:02:15]} 16. Qxg6+ {[%clk 0:02:37]}  Kh8 {[%clk 0:02:13]} 17. Qxh6+ {[%clk 0:02:23]}  Nh7 {[%clk 0:02:12]} 18. Bxe5+ {[%clk 0:02:23]}  f6 {[%clk 0:02:12]} 19. Nxg5 {[%clk 0:02:24]}  Bf5 {[%clk 0:02:08]} 20. Nxh7 {[%clk 0:02:01]}  Bxh7 {[%clk 0:02:09]} 21. Bd3 {[%clk 0:01:55]}  Qe7 {[%clk 0:01:58]} 22. Bxh7 {[%clk 0:01:51]}  Qxh7 {[%clk 0:01:59]} 23. Bxf6+ {[%clk 0:01:51]}  Kg8 {[%clk 0:01:54]} 24. Qxh7+ {[%clk 0:01:51]}  Kxh7 {[%clk 0:01:55]} 25. Be5 {[%clk 0:01:51]}  Rad8 {[%clk 0:01:54]} 26. Nf3 {[%clk 0:01:50]}  Rde8 {[%clk 0:01:52]} 27. a5 {[%clk 0:01:48]}  Ba7 {[%clk 0:01:49]} 28. Bxc7 {[%clk 0:01:48]}  Re2 {[%clk 0:01:49]} 29. b4 {[%clk 0:01:45]}  Rf7 {[%clk 0:01:45]} 30. Ng5+ {[%clk 0:01:44]}  Kg6 {[%clk 0:01:45]} 31. Nxf7 {[%clk 0:01:44]} 1-0


[Site "https://www.chess.com"]

[Event "Titled Tuesday Blitz February 22 Early 2022"]
[White "Fiorito, Fabian"]
[Black "Siva Mahadevan"]
[WhiteFideId "100200"]
[BlackFideId "25043153"]
[WhiteElo "2395"]
[BlackElo "2203"]
[Result "0-1"]
[Round "01"]
[TimeControl "180+1"]
[Date "2022.02.22"]
[WhiteClock "0:00:41"]
[BlackClock "0:00:24"]

1. d4 {[%clk 0:03:00]}  Nf6 {[%clk 0:02:59]} 2. Nc3 {[%clk 0:02:59]}  d5 {[%clk 0:02:59]} 3. Bf4 {[%clk 0:02:59]}  g6 {[%clk 0:02:59]} 4. e3 {[%clk 0:02:59]}  Bg7 {[%clk 0:03:00]} 5. h4 {[%clk 0:02:59]}  O-O {[%clk 0:03:00]} 6. h5 {[%clk 0:02:58]}  c5 {[%clk 0:03:00]} 7. hxg6 {[%clk 0:02:52]}  hxg6 {[%clk 0:03:01]} 8. Qd2 {[%clk 0:02:50]}  Nc6 {[%clk 0:03:00]} 9. O-O-O {[%clk 0:02:50]}  Qa5 {[%clk 0:02:49]} 10. dxc5 {[%clk 0:02:45]}  Qxc5 {[%clk 0:02:33]} 11. Nxd5 {[%clk 0:02:26]}  Ne4 {[%clk 0:01:27]} 12. Qe2 {[%clk 0:02:11]}  Nb4 {[%clk 0:01:25]} 13. Nxb4 {[%clk 0:02:08]}  Qxb4 {[%clk 0:01:26]} 14. c3 {[%clk 0:02:03]}  Nxc3 {[%clk 0:00:58]} 15. bxc3 {[%clk 0:02:00]}  Qxc3+ {[%clk 0:00:58]} 16. Qc2 {[%clk 0:02:01]}  Qa3+ {[%clk 0:00:59]} 17. Kd2 {[%clk 0:01:59]}  Bf5 {[%clk 0:00:59]} 18. e4 {[%clk 0:01:51]}  Rac8 {[%clk 0:00:53]} 19. Qb3 {[%clk 0:01:44]}  Qa5+ {[%clk 0:00:48]} 20. Ke2 {[%clk 0:01:41]}  Bxe4 {[%clk 0:00:45]} 21. Nf3 {[%clk 0:01:39]}  Rc3 {[%clk 0:00:39]} 22. Nd2 {[%clk 0:00:51]}  Rxb3 {[%clk 0:00:37]} 23. axb3 {[%clk 0:00:51]}  Bd5 {[%clk 0:00:36]} 24. f3 {[%clk 0:00:47]}  e5 {[%clk 0:00:35]} 25. Be3 {[%clk 0:00:46]}  f5 {[%clk 0:00:34]} 26. Kf2 {[%clk 0:00:47]}  f4 {[%clk 0:00:34]} 27. Nc4 {[%clk 0:00:46]}  fxe3+ {[%clk 0:00:34]} 28. Nxe3 {[%clk 0:00:47]}  Bxb3 {[%clk 0:00:34]} 29. Rd7 {[%clk 0:00:46]}  Qb6 {[%clk 0:00:31]} 30. Bd3 {[%clk 0:00:46]}  Rd8 {[%clk 0:00:24]} 31. Rxd8+ {[%clk 0:00:40]}  Qxd8 {[%clk 0:00:25]} 32. Bxg6 {[%clk 0:00:41]}  Qd2+ {[%clk 0:00:24]} 0-1


[Site "https://www.chess.com"]

[Event "Titled Tuesday Blitz February 22 Early 2022"]
[White "Galyas, Miklos"]
[Black "Sahin, Handenur"]
[WhiteFideId "707244"]
[BlackFideId "6334865"]
[WhiteElo "2409"]
[BlackElo "2091"]
[Result "0-1"]
[Round "01"]
[TimeControl "180+1"]
[Date "2022.02.22"]
[WhiteClock "0:00:01"]
[BlackClock "0:00:06"]

1. c4 {[%clk 0:02:59]}  e5 {[%clk 0:02:59]} 2. Nc3 {[%clk 0:02:58]}  Bb4 {[%clk 0:02:59]} 3. e4 {[%clk 0:02:57]}  Nf6 {[%clk 0:02:56]} 4. g3 {[%clk 0:02:56]}  O-O {[%clk 0:02:53]} 5. Nge2 {[%clk 0:02:56]}  c6 {[%clk 0:02:51]} 6. Bg2 {[%clk 0:02:56]}  d6 {[%clk 0:02:45]} 7. O-O {[%clk 0:02:55]}  Be6 {[%clk 0:02:44]} 8. d3 {[%clk 0:02:53]}  d5 {[%clk 0:02:43]} 9. exd5 {[%clk 0:02:50]}  cxd5 {[%clk 0:02:42]} 10. d4 {[%clk 0:02:45]}  Bxc3 {[%clk 0:02:38]} 11. bxc3 {[%clk 0:02:34]}  Nc6 {[%clk 0:02:36]} 12. Bg5 {[%clk 0:02:28]}  e4 {[%clk 0:02:22]} 13. Nf4 {[%clk 0:02:24]}  Ne7 {[%clk 0:02:08]} 14. cxd5 {[%clk 0:02:13]}  Nexd5 {[%clk 0:02:07]} 15. Nxe6 {[%clk 0:02:09]}  fxe6 {[%clk 0:02:06]} 16. Rc1 {[%clk 0:01:47]}  h6 {[%clk 0:01:55]} 17. Bd2 {[%clk 0:01:45]}  Qe7 {[%clk 0:01:50]} 18. c4 {[%clk 0:01:44]}  Nb4 {[%clk 0:01:46]} 19. Qb3 {[%clk 0:01:32]}  Nc6 {[%clk 0:01:40]} 20. d5 {[%clk 0:01:06]}  exd5 {[%clk 0:01:29]} 21. cxd5 {[%clk 0:01:04]}  Nd4 {[%clk 0:01:26]} 22. Qc4 {[%clk 0:00:44]}  Nf3+ {[%clk 0:01:06]} 23. Bxf3 {[%clk 0:00:41]}  exf3 {[%clk 0:01:07]} 24. d6+ {[%clk 0:00:36]}  Qf7 {[%clk 0:01:06]} 25. Bb4 {[%clk 0:00:25]}  Qxc4 {[%clk 0:00:56]} 26. Rxc4 {[%clk 0:00:25]}  Rad8 {[%clk 0:00:49]} 27. Rc7 {[%clk 0:00:24]}  Ne4 {[%clk 0:00:43]} 28. Rxb7 {[%clk 0:00:22]}  Nxd6 {[%clk 0:00:40]} 29. Rxa7 {[%clk 0:00:21]}  Nb5 {[%clk 0:00:37]} 30. Rb7 {[%clk 0:00:19]}  Rf5 {[%clk 0:00:33]} 31. h3 {[%clk 0:00:18]}  Nd4 {[%clk 0:00:33]} 32. a4 {[%clk 0:00:18]}  Ne2+ {[%clk 0:00:32]} 33. Kh2 {[%clk 0:00:17]}  Rd4 {[%clk 0:00:21]} 34. a5 {[%clk 0:00:17]}  Rf7 {[%clk 0:00:13]} 35. a6 {[%clk 0:00:16]}  Rxb7 {[%clk 0:00:11]} 36. axb7 {[%clk 0:00:16]}  Rxb4 {[%clk 0:00:12]} 37. Rd1 {[%clk 0:00:04]}  Rxb7 {[%clk 0:00:12]} 38. Rd3 {[%clk 0:00:04]}  Rf7 {[%clk 0:00:11]} 39. Re3 {[%clk 0:00:04]}  Kh7 {[%clk 0:00:10]} 40. h4 {[%clk 0:00:02]}  Kg6 {[%clk 0:00:10]} 41. Kh3 {[%clk 0:00:03]}  h5 {[%clk 0:00:09]} 42. Kh2 {[%clk 0:00:02]}  Nd4 {[%clk 0:00:08]} 43. Kh3 {[%clk 0:00:03]}  Nf5 {[%clk 0:00:08]} 44. Re4 {[%clk 0:00:02]}  Nh6 {[%clk 0:00:07]} 45. Re6+ {[%clk 0:00:02]}  Rf6 {[%clk 0:00:07]} 46. Re1 {[%clk 0:00:01]}  Ng4 {[%clk 0:00:06]} 47. Rf1 {[%clk 0:00:02]}  Ne5 {[%clk 0:00:05]} 48. Kh2 {[%clk 0:00:01]}  Nd3 {[%clk 0:00:06]} 0-1


[Site "https://www.chess.com"]